bitfinex/quotes_SOLUSD_20220128
["timestamp","ask_amount","ask_price","bid_price","bid_amount"]
[1643355502478,1.47675167,90.561,90.465,0.1]
[1643355502678,1.47675167,90.553,90.465,0.1]
[1643355502881,1.47675167,90.55,90.465,0.1]
[1643355503080,1.47675167,90.554,90.465,109.0]
[1643355503282,1.47675167,90.553,90.466,0.35]
[1643355503482,1.47675167,90.552,90.466,0.1]
[1643355503984,1.47675167,90.549,90.466,0.1]
[1643355504180,1.47675167,90.548,90.466,0.1]
[1643355504381,1.47675167,90.547,90.466,0.1]
[1643355504787,42.38560502,90.543,90.466,0.35]
[1643355504988,0.1,90.542,90.466,0.35]
[1643355505183,1.47675167,90.539,90.466,0.35]
[1643355505383,1.47675167,90.537,90.466,0.35]
[1643355505582,1.47675167,90.539,90.466,0.35]
[1643355506182,1.47675167,90.541,90.466,0.35]
[1643355506382,1.47675167,90.543,90.466,0.35]
[1643355506584,1.47675167,90.545,90.47,13.3]
[1643355506784,3.09240947,90.579,90.472,108.9]
[1643355506785,1.47675167,90.548,90.472,108.9]
[1643355506983,1.47675167,90.548,90.473,0.1]
[1643355507182,39.45558213,90.547,90.473,0.35]
[1643355507384,1.47675167,90.543,90.473,0.35]
[1643355508184,1.47675167,90.545,90.473,0.35]
[1643355508385,1.47675167,90.543,90.473,0.35]
[1643355508586,1.18121471,90.547,90.473,0.35]
[1643355508788,2.65796638,90.547,90.473,0.35]
[1643355508987,1.18121471,90.547,90.473,0.35]
[1643355509689,1.47675167,90.543,90.473,0.35]
[1643355509886,1.47675167,90.545,90.473,0.35]
[1643355510287,1.47675167,90.546,90.473,0.35]
[1643355511088,2.65796638,90.547,90.473,0.35]
[1643355511289,1.47675167,90.546,90.473,0.35]
[1643355511891,38.24603707,90.546,90.473,0.35]
[1643355512091,1.47675167,90.544,90.473,0.35]
[1643355512690,1.47675167,90.541,90.473,0.35]
[1643355513089,1.47675167,90.542,90.473,0.35]
[1643355513291,1.57675167,90.542,90.473,0.35]
[1643355513488,1.47675167,90.543,90.473,0.35]
[1643355513890,1.47675167,90.541,90.473,0.35]
[1643355514093,1.47675167,90.54,90.473,0.35]
[1643355514292,1.47675167,90.536,90.473,0.1]
[1643355514493,1.47675167,90.524,90.451,0.1]
[1643355514692,1.47675167,90.515,90.449,0.1]
[1643355514892,1.47675167,90.509,90.42,15.92]
[1643355515094,1.47675167,90.5,90.421,0.1]
[1643355515295,1.47675167,90.499,90.421,0.1]
[1643355515693,1.47675167,90.502,90.421,109.0]
[1643355515894,1.47675167,90.502,90.422,0.1]
[1643355516094,2.95669142,90.498,90.421,0.1]
[1643355516294,42.83450972,90.495,90.401,0.1]
[1643355516496,1.47675167,90.492,90.397,0.1]
[1643355516694,0.1,90.494,90.397,0.1]
[1643355516894,0.1,90.494,90.391,0.1]
[1643355517296,18.20586234,90.494,90.391,0.35]
[1643355517595,0.1,90.493,90.391,0.35]
[1643355517797,0.1,90.494,90.391,0.35]
[1643355517995,0.1,90.494,90.391,109.25]
[1643355518196,0.1,90.494,90.392,0.1]
[1643355518796,1.47675167,90.5,90.392,0.1]
[1643355518996,1.47675167,90.5,90.392,23.7977]
[1643355519196,1.47675167,90.5,90.393,0.1]
[1643355519399,1.47675167,90.501,90.393,0.35]
[1643355519598,46.36018021,90.501,90.393,0.35]
[1643355519796,0.1,90.5,90.393,0.35]
[1643355519997,0.1,90.5,90.394,2.2515884]
[1643355520197,0.1,90.5,90.394,0.1]
[1643355520396,1.57675167,90.506,90.394,0.1]
[1643355521196,37.07205802,90.505,90.394,0.1]
[1643355521397,0.1,90.504,90.394,0.1]
[1643355523201,18.10586234,90.503,90.394,0.1]
[1643355523402,0.1,90.502,90.394,0.1]
[1643355523802,18.20586234,90.502,90.394,0.1]
[1643355524002,0.1,90.501,90.394,0.1]
[1643355524502,18.10586234,90.5,90.394,0.1]
[1643355524708,0.1,90.499,90.394,0.1]
[1643355525102,18.10586234,90.498,90.394,0.1]
[1643355525303,0.1,90.497,90.394,0.1]
[1643355525703,18.20586234,90.497,90.394,0.1]
[1643355525926,0.1,90.496,90.394,0.1]
[1643355526503,18.20586234,90.496,90.394,0.1]
[1643355526703,0.1,90.495,90.394,0.1]
[1643355531208,0.1,90.495,90.395,2.2515884]
[1643355531408,0.1,90.495,90.404,108.9]
[1643355531609,0.1,90.506,90.414,6.0]
[1643355531811,0.1,90.514,90.417,65.31]
[1643355532011,15.92,90.57,90.416,108.9]
[1643355532012,0.1,90.53,90.431,65.31]
[1643355532216,1.47675167,90.558,90.44,199.03]
[1643355532415,1.47675167,90.56,90.45,15.92]
[1643355532612,1.47675167,90.56,90.451,109.0]
[1643355532811,1.47675167,90.561,90.46,6.0]
[1643355533015,1.47675167,90.561,90.47,15.92]
[1643355533215,1.47675167,90.562,90.481,108.9]
[1643355533437,1.47675167,90.565,90.482,0.1]
[1643355533612,1.47675167,90.567,90.482,0.35]
[1643355534112,1.47675167,90.568,90.482,0.35]
[1643355534413,1.47675167,90.569,90.482,0.35]
[1643355534813,0.1,90.584,90.484,65.31]
[1643355535019,0.1,90.584,90.494,6.0]
[1643355535215,1.47675167,90.58,90.5,15.92]
[1643355535417,1.47675167,90.585,90.501,0.1]
[1643355535616,1.47675167,90.585,90.511,108.9]
[1643355535820,1.47675167,90.588,90.52,15.92]
[1643355536021,1.47675167,90.588,90.521,0.1]
[1643355536217,1.47675167,90.583,90.521,0.1]
[1643355536417,2.95669142,90.587,90.501,0.1]
[1643355536418,1.47675167,90.574,90.501,0.1]
[1643355536619,1.47675167,90.574,90.488,0.1]
[1643355537017,1.47675167,90.57,90.488,0.1]
[1643355537621,1.47675167,90.572,90.488,0.35]
[1643355538019,1.47675167,90.571,90.488,0.35]
[1643355538223,1.47675167,90.573,90.49,15.92]
[1643355538420,1.47675167,90.583,90.497,6.0]
[1643355538620,1.18850839,90.569,90.5,15.92]
[1643355538820,1.18850839,90.569,90.501,0.35]
[1643355539022,1.18850839,90.569,90.501,109.25]
[1643355539321,1.18850839,90.569,90.502,0.1]
[1643355540020,40.33065986,90.568,90.502,0.1]
[1643355540224,0.1,90.567,90.501,0.1]
[1643355540421,1.47675167,90.565,90.481,0.1]
[1643355540622,1.47675167,90.565,90.45,15.92]
[1643355540822,0.1,90.565,90.46,15.92]
[1643355541043,0.1,90.565,90.461,0.1]
[1643355541245,0.1,90.565,90.461,0.35]
[1643355541542,1.47675167,90.564,90.461,109.25]
[1643355541742,39.07599748,90.56,90.462,0.1]
[1643355541943,0.1,90.559,90.462,0.1]
[1643355542544,2.95669142,90.558,90.462,0.1]
[1643355542946,4.43344309,90.558,90.462,0.1]
[1643355543144,0.1,90.559,90.462,0.1]
[1643355543345,1.47675167,90.564,90.462,22.6996]
[1643355543546,1.47675167,90.566,90.463,109.0]
[1643355543749,1.47675167,90.566,90.464,0.1]
[1643355543949,1.47675167,90.568,90.464,22.9698]
[1643355544148,41.83636945,90.567,90.465,109.0]
[1643355544346,0.1,90.566,90.47,15.92]
[1643355544549,1.47675167,90.57,90.471,109.0]
[1643355544746,4.43344309,90.572,90.472,0.1]
[1643355545146,1.47675167,90.571,90.472,0.1]
[1643355545352,49.36727798,90.57,90.472,0.1]
[1643355545547,0.1,90.569,90.472,0.1]
[1643355547750,0.1,90.569,90.472,0.35]
[1643355547956,1.47675167,90.568,90.472,0.35]
[1643355548750,0.1,90.569,90.472,0.35]
[1643355548951,1.47675167,90.568,90.472,0.35]
[1643355549152,0.1,90.569,90.472,0.35]
[1643355549353,2.95669142,90.589,90.472,0.35]
[1643355549354,1.47675167,90.579,90.482,108.9]
[1643355549554,1.47675167,90.585,90.49,15.92]
[1643355549754,1.47675167,90.585,90.492,6.0]
[1643355549952,0.1,90.586,90.493,22.5431]
[1643355550154,0.1,90.586,90.494,0.1]
[1643355550354,0.1,90.586,90.494,109.25]
[1643355550556,0.1,90.586,90.495,0.1]
[1643355550756,17.5454179,90.585,90.5,15.92]
[1643355550953,17.5454179,90.585,90.501,0.1]
[1643355550954,0.1,90.584,90.501,0.1]
[1643355551354,17.5454179,90.583,90.501,0.1]
[1643355551554,1.47675167,90.578,90.501,0.1]
[1643355551754,1.47675167,90.576,90.501,0.1]
[1643355552054,1.47675167,90.573,90.501,0.1]
[1643355552253,1.47675167,90.572,90.501,0.1]
[1643355552654,1.47675167,90.571,90.501,0.1]
[1643355552853,4.43344309,90.571,90.501,0.1]
[1643355553052,2.95669142,90.571,90.501,0.1]
[1643355553256,0.1,90.574,90.501,0.35]
[1643355553453,1.47675167,90.576,90.501,109.0]
[1643355553653,1.18950271,90.572,90.502,0.1]
[1643355554353,4.14619413,90.572,90.502,0.1]
[1643355556055,1.18950271,90.572,90.502,0.1]
[1643355557658,2.66625438,90.572,90.502,0.1]
[1643355557957,1.47675167,90.57,90.502,0.1]
[1643355558359,4.43344309,90.571,90.502,0.1]
[1643355558557,35.4561329,90.563,90.502,0.1]
[1643355558757,35.4561329,90.563,90.481,108.9]
[1643355558758,1.47675167,90.557,90.482,0.1]
[1643355558959,1.47675167,90.556,90.482,0.1]
[1643355559158,1.18917128,90.571,90.491,6.0]
[1643355559359,1.47675167,90.569,90.492,109.15]
[1643355559558,1.18917128,90.571,90.493,0.1]
[1643355559860,35.58621011,90.57,90.493,0.1]
[1643355560060,0.1,90.569,90.493,0.1]
[1643355560258,0.1,90.569,90.491,6.1]
[1643355560458,1.47675167,90.559,90.491,6.1]
[1643355560659,1.47675167,90.557,90.491,6.1]
[1643355560863,1.47675167,90.556,90.491,0.1]
[1643355561060,0.1,90.569,90.491,0.1]
[1643355561061,1.47675167,90.555,90.491,0.1]
[1643355561261,1.47675167,90.543,90.491,0.1]
[1643355561460,1.47675167,90.543,90.433,0.1]
[1643355561461,36.2328169,90.542,90.433,0.1]
[1643355561661,0.1,90.541,90.433,0.1]
[1643355561863,1.47675167,90.512,90.433,0.1]
[1643355562064,41.85495952,90.511,90.433,0.1]
[1643355562364,1.47675167,90.504,90.432,0.1]
[1643355562563,1.47675167,90.501,90.432,0.1]
[1643355562765,1.47675167,90.501,90.401,0.1]
[1643355562966,1.47675167,90.495,90.396,0.1]
[1643355563164,1.47675167,90.493,90.396,109.0]
[1643355563367,1.47675167,90.493,90.397,0.1]
[1643355563664,1.47675167,90.491,90.397,0.1]
[1643355563867,2.95669142,90.492,90.397,0.1]
[1643355564467,0.1,90.499,90.397,0.1]
[1643355564967,0.1,90.499,90.398,108.9]
[1643355565168,0.1,90.499,90.399,0.1]
[1643355565368,0.1,90.499,90.399,0.35]
[1643355565568,1.47675167,90.5,90.399,0.35]
[1643355565768,1.47675167,90.505,90.399,0.35]
[1643355565970,1.47675167,90.506,90.399,0.35]
[1643355566268,2.95669142,90.5,90.399,0.35]
[1643355566767,21.37581043,90.5,90.399,0.35]
[1643355566968,0.1,90.499,90.399,0.35]
[1643355567896,0.1,90.499,90.4,15.92]
[1643355568098,1.47675167,90.512,90.401,23.0677]
[1643355568298,1.47675167,90.516,90.402,109.0]
[1643355568500,1.47675167,90.516,90.403,0.1]
[1643355568802,1.57675167,90.517,90.403,0.35]
[1643355568999,1.57675167,90.517,90.413,108.9]
[1643355569199,0.1,90.517,90.414,23.2699]
[1643355569400,2.95669142,90.516,90.415,0.1]
[1643355569599,1.47675167,90.515,90.415,0.1]
[1643355569800,38.63709067,90.514,90.415,109.0]
[1643355570002,0.1,90.513,90.416,0.1]
[1643355570201,21.47581043,90.513,90.414,22.5199]
[1643355570402,40.44371019,90.513,90.414,22.5199]
[1643355570601,21.37581043,90.512,90.414,22.5199]
[1643355570800,1.47675167,90.511,90.414,22.5199]
[1643355571003,22.8525621,90.511,90.414,22.5199]
[1643355571201,21.37581043,90.51,90.414,22.5199]
[1643355571601,21.37581043,90.509,90.414,22.5199]
[1643355572002,21.37581043,90.508,90.414,22.5199]
[1643355572403,21.37581043,90.507,90.414,22.5199]
[1643355572702,21.37581043,90.506,90.414,22.5199]
[1643355573106,2.97868866,90.538,90.414,22.5199]
[1643355573107,1.47675167,90.521,90.42,15.92]
[1643355573306,18.41911901,90.525,90.421,0.25]
[1643355573508,18.41911901,90.525,90.421,109.15]
[1643355574106,43.51151459,90.524,90.421,0.25]
[1643355574505,21.37581043,90.523,90.43,6.0]
[1643355574704,21.37581043,90.523,90.415,0.25]
[1643355574906,33.38844945,90.522,90.415,0.25]
[1643355575305,33.38844945,90.521,90.415,0.25]
[1643355575706,33.38844945,90.52,90.415,109.15]
[1643355576108,33.38844945,90.519,90.415,109.15]
[1643355576507,33.38844945,90.518,90.415,109.15]
[1643355576907,33.38844945,90.517,90.415,109.15]
[1643355577207,12.01263902,90.516,90.415,109.15]
[1643355577408,33.38844945,90.516,90.415,109.15]
[1643355577606,2.95669142,90.515,90.415,109.15]
[1643355577808,14.96933044,90.515,90.415,109.15]
[1643355578208,2.95669142,90.514,90.415,109.15]
[1643355580107,2.95669142,90.514,90.376,1.51835001]
[1643355580308,108.9,90.509,90.375,1.51835001]
[1643355580510,1.47675167,90.5,90.372,48.223]
[1643355580711,1.47675167,90.492,90.372,48.223]
[1643355580910,43.10350453,90.488,90.372,48.223]
[1643355581112,1.47675167,90.487,90.372,48.223]
[1643355581311,110.37675167,90.487,90.372,48.223]
[1643355581609,12.01263902,90.486,90.373,109.15]
[1643355582611,14.96933044,90.486,90.373,109.15]
[1643355583011,14.96933044,90.486,90.384,108.9]
[1643355583210,18.41911901,90.485,90.384,108.9]
[1643355583411,18.41911901,90.485,90.385,0.25]
[1643355588019,1.47675167,90.495,90.4,15.92]
[1643355588222,1.47675167,90.518,90.4,15.92]
[1643355588419,1.47675167,90.516,90.41,6.0]
[1643355588619,2.97868866,90.541,90.41,6.0]
[1643355588620,1.47675167,90.517,90.42,15.92]
[1643355588922,1.47675167,90.512,90.421,0.25]
[1643355589121,1.47675167,90.525,90.431,108.9]
[1643355589324,1.47675167,90.521,90.44,15.92]
[1643355589521,1.47675167,90.526,90.45,6.0]
[1643355589727,1.47675167,90.526,90.45,21.92]
[1643355589923,1.47675167,90.526,90.452,108.9]
[1643355590122,1.47675167,90.526,90.462,6.0]
[1643355590327,1.47675167,90.519,90.463,0.25]
[1643355590521,2.97868866,90.545,90.463,0.25]
[1643355590522,1.47675167,90.52,90.463,0.25]
[1643355590722,1.47675167,90.525,90.463,0.25]
[1643355590924,1.47675167,90.527,90.463,0.25]
[1643355591124,4.44066172,90.578,90.463,0.25]
[1643355591125,1.47675167,90.539,90.471,6.0]
[1643355591322,1.47675167,90.545,90.472,0.25]
[1643355591525,1.47675167,90.552,90.48,6.0]
[1643355591923,1.47675167,90.552,90.483,6.0]
[1643355592124,1.47675167,90.557,90.483,6.0]
[1643355592324,1.47675167,90.556,90.484,0.25]
[1643355592624,1.47675167,90.554,90.484,0.25]
[1643355592826,1.47675167,90.554,90.484,109.15]
[1643355593026,1.47675167,90.562,90.494,6.0]
[1643355593227,3.00083131,90.587,90.495,108.9]
[1643355593228,1.47675167,90.564,90.495,108.9]
[1643355593532,1.47675167,90.571,90.51,15.92]
[1643355593825,2.97868866,90.641,90.512,65.31]
[1643355594028,2.97868866,90.641,90.511,23.3585]
[1643355594029,2.97868866,90.641,90.523,65.31]
[1643355594225,2.97868866,90.651,90.53,15.92]
[1643355594425,2.97868866,90.651,90.533,6.0]
[1643355594625,0.30077726,90.6,90.54,6.0]
[1643355594825,2.97868866,90.662,90.55,15.92]
[1643355595026,2.98301258,90.679,90.561,108.9]
[1643355595228,2.98301258,90.685,90.57,15.92]
[1643355595426,2.98301258,90.691,90.572,108.9]
[1643355595726,2.98301258,90.691,90.582,6.0]
[1643355595928,9.87,90.7,90.59,15.92]
[1643355596128,9.87,90.7,90.6,6.0]
[1643355596330,9.87,90.7,90.61,15.92]
[1643355596530,9.87,90.7,90.62,6.0]
[1643355596932,9.87,90.7,90.63,15.92]
[1643355597128,9.87,90.7,90.64,6.0]
[1643355597329,9.87,90.7,90.64,21.92]
[1643355597731,39.49578676,90.699,90.64,22.17]
[1643355597929,42.45247818,90.699,90.62,15.92]
[1643355598130,42.45247818,90.699,90.573,23.3168]
[1643355598329,76.7299004,90.698,90.59,6.0]
[1643355598529,93.21418607,90.698,90.58,6.0]
[1643355598730,46.62018607,90.697,90.58,6.0]
[1643355598931,46.62018607,90.697,90.58,13.25]
[1643355599132,46.62018607,90.696,90.59,6.0]
[1643355599530,19.44097709,90.695,90.591,6.0]
[1643355600229,10.82086908,90.696,90.6,6.0]
[1643355600432,39.49578676,90.699,90.6,19.25]
[1643355600730,39.49578676,90.699,90.6,19.5]
[1643355600957,42.45247818,90.699,90.6,19.25]
[1643355601334,2.95669142,90.713,90.602,6.0]
[1643355601734,2.95669142,90.73,90.61,6.0]
[1643355601932,2.95669142,90.73,90.611,132.3879]
[1643355602134,2.95669142,90.73,90.621,6.0]
[1643355602332,58.27787442,90.729,90.622,108.9]
[1643355602732,19.44097709,90.728,90.622,108.9]
[1643355603135,2.95669142,90.727,90.621,6.0]
[1643355603331,19.44097709,90.727,90.621,6.0]
[1643355603532,27.30515475,90.726,90.612,22.578]
[1643355603731,46.62018607,90.726,90.612,22.578]
[1643355603933,108.9,90.724,90.59,13.25]
[1643355604132,13.25,90.72,90.6,6.0]
[1643355604537,47.48834743,90.719,90.6,6.0]
[1643355604731,50.44503885,90.719,90.6,6.0]
[1643355604932,16.5582,90.71,90.6,6.0]
[1643355605136,38.87172515,90.709,90.606,6.0]
[1643355605335,38.87172515,90.709,90.601,108.9]
[1643355605336,89.316764,90.709,90.6,6.0]
[1643355605534,50.44503885,90.708,90.6,6.0]
[1643355605833,31.13000753,90.707,90.6,6.0]
[1643355606033,50.44503885,90.707,90.6,6.0]
[1643355606234,50.44503885,90.706,90.6,6.0]
[1643355606434,34.08669895,90.706,90.606,6.0]
[1643355606734,16.37485939,90.705,90.606,6.0]
[1643355606938,16.5596,90.7,90.58,13.25]
[1643355607135,13.25,90.69,90.56,13.25]
[1643355607335,36.06710465,90.689,90.542,108.9]
[1643355607534,162.4810001,90.689,90.543,46.9863]
[1643355607734,17.51389545,90.688,90.55,13.25]
[1643355607936,17.51389545,90.688,90.551,108.9]
[1643355608235,39.02379607,90.689,90.551,108.9]
[1643355608457,39.02379607,90.689,90.55,13.25]
[1643355608458,39.02379607,90.689,90.562,108.9]
[1643355608633,39.02379607,90.689,90.571,108.9]
[1643355608837,39.02379607,90.689,90.58,13.25]
[1643355609135,17.71183956,90.688,90.59,6.0]
[1643355609336,38.18242643,90.688,90.581,46.4412]
[1643355609638,38.18242643,90.687,90.581,46.4412]
[1643355609835,50.55004106,90.687,90.581,46.4412]
[1643355610036,30.07945419,90.686,90.581,46.4412]
[1643355610435,17.71183956,90.685,90.581,46.4412]
[1643355610937,17.71183956,90.685,90.582,108.9]
[1643355611338,13.25,90.74,90.583,67.56126737]
[1643355611543,48.0622,90.757,90.593,71.31]
[1643355611837,0.04375011,90.76,90.601,65.31]
[1643355612038,0.04375011,90.76,90.612,65.31]
[1643355612241,0.04375011,90.76,90.621,65.31]
[1643355612440,0.04375011,90.76,90.623,65.31]
[1643355612642,0.04375011,90.76,90.633,6.0]
[1643355612844,0.04375011,90.76,90.641,65.31]
[1643355613040,0.04375011,90.76,90.651,6.0]
[1643355613342,0.04375011,90.76,90.66,13.25]
[1643355613542,0.04375011,90.76,90.67,6.0]
[1643355613742,0.04375011,90.76,90.68,13.25]
[1643355614140,0.04375011,90.76,90.69,6.0]
[1643355614342,0.04375011,90.76,90.69,19.5]
[1643355614643,0.04375011,90.76,90.692,65.31]
[1643355615045,0.00375011,90.76,90.703,65.31]
[1643355615241,0.00375011,90.76,90.71,13.25]
[1643355615441,0.00375011,90.76,90.711,24.6316]
[1643355615643,0.00375011,90.76,90.72,6.0]
[1643355615841,0.00375011,90.76,90.73,13.25]
[1643355616076,0.00375011,90.76,90.74,6.0]
[1643355616869,0.00375011,90.76,90.73,13.25]
[1643355617072,0.00375011,90.76,90.74,19.25]
[1643355617273,0.00375011,90.76,90.721,6.0]
[1643355617575,0.00375011,90.76,90.73,6.0]
[1643355617771,0.00375011,90.76,90.72,13.25]
[1643355617971,0.00375011,90.76,90.7,13.25]
[1643355618972,0.00375011,90.76,90.7,13.5]
[1643355619575,0.00375011,90.76,90.71,6.0]
[1643355619772,0.00375011,90.76,90.72,13.25]
[1643355620184,0.00375011,90.76,90.73,6.0]
[1643355620373,0.00375011,90.76,90.73,19.25]
[1643355620874,0.00375011,90.76,90.73,19.5]
[1643355621275,0.00375011,90.76,90.731,108.9]
[1643355621476,0.00375011,90.76,90.73,19.5]
[1643355621675,0.00375011,90.76,90.741,6.0]
[1643355621877,0.00375011,90.76,90.73,6.25]
[1643355622077,0.00375011,90.76,90.74,13.25]
[1643355622276,0.00375011,90.76,90.74,13.5]
[1643355622478,0.00375011,90.76,90.75,6.0]
[1643355622680,0.00375011,90.76,90.75,19.25]
[1643355623076,0.00375011,90.76,90.751,6.0]
[1643355624682,0.00375011,90.76,90.75,13.25]
[1643355624879,0.00375011,90.76,90.65,165.64]
[1643355625079,0.00375011,90.76,90.643,46.7934]
[1643355625080,31.6658398,90.759,90.643,46.7934]
[1643355625382,69.64708097,90.758,90.65,13.25]
[1643355625581,72.60377239,90.758,90.65,13.25]
[1643355625879,37.23250646,90.757,90.65,13.25]
[1643355626281,37.23250646,90.756,90.65,13.5]
[1643355626482,37.23250646,90.756,90.66,6.0]
[1643355626680,34.27581504,90.755,90.66,19.25]
[1643355626880,37.23250646,90.755,90.66,19.25]
[1643355627080,2.95669142,90.754,90.66,19.25]
[1643355627282,36.92411812,90.754,90.66,19.25]
[1643355627480,33.9674267,90.753,90.66,19.25]
[1643355627680,36.92411812,90.753,90.66,19.25]
[1643355627882,2.95669142,90.752,90.66,19.25]
[1643355628082,2.95669142,90.752,90.666,6.0]
[1643355628281,108.9,90.75,90.64,13.25]
[1643355628481,108.9,90.75,90.57,16.5493]
[1643355628482,0.32455276,90.731,90.62,13.25]
[1643355628681,0.32455276,90.731,90.559,78.0814]
[1643355628882,33.21227614,90.73,90.571,108.9]
[1643355629082,108.9,90.729,90.573,108.9]
[1643355629380,33.9674267,90.728,90.573,108.9]
[1643355629581,53.92970284,90.728,90.573,108.9]
[1643355629781,128.86227614,90.727,90.584,108.9]
[1643355629981,178.62287574,90.727,90.59,13.25]
[1643355630183,108.9,90.725,90.594,4.0]
[1643355630484,108.9,90.725,90.6,6.0]
[1643355630485,16.5599,90.7,90.6,6.0]
[1643355630684,48.7976224,90.699,90.6,6.0]
[1643355630982,108.9,90.698,90.6,6.0]
[1643355631185,144.82411812,90.698,90.6,6.25]
[1643355631382,35.07178479,90.697,90.6,0.25]
[1643355631784,35.07178479,90.696,90.6,0.25]
[1643355632185,2.95669142,90.695,90.6,0.25]
[1643355632384,2.95669142,90.695,90.591,108.9]
[1643355632889,2.95669142,90.705,90.591,108.9]
[1643355633092,115.095,90.757,90.601,6.0]
[1643355633284,115.095,90.757,90.61,13.25]
[1643355633485,187.9243,90.749,90.611,108.9]
[1643355633685,187.9243,90.749,90.621,108.9]
[1643355633885,47.48884491,90.748,90.63,13.25]
[1643355634088,0.32178085,90.745,90.61,13.25]
[1643355634487,19.84679136,90.744,90.61,13.25]
[1643355634686,13.25,90.74,90.61,13.25]
[1643355634889,29.8024,90.74,90.61,13.25]
[1643355635085,16.5524,90.74,90.62,6.0]
[1643355635288,16.5524,90.74,90.63,13.25]
[1643355635790,16.5524,90.74,90.64,6.0]
[1643355635987,16.5524,90.74,90.641,108.9]
[1643355639092,16.5524,90.74,90.651,6.0]
[1643355639290,47.48884491,90.748,90.651,6.0]
[1643355639490,47.48884491,90.748,90.652,108.9]
[1643355639690,2.95669142,90.747,90.652,108.9]
[1643355641692,16.5522,90.74,90.65,19.25]
[1643355641894,108.9,90.739,90.622,47.9953]
[1643355642092,121.70409475,90.739,90.632,6.0]
[1643355642293,29.59726765,90.738,90.63,6.0]
[1643355642493,108.9,90.737,90.62,6.0]
[1643355642694,138.49726765,90.737,90.62,6.0]
[1643355642893,12.80409475,90.736,90.62,6.0]
[1643355643099,15.76078617,90.736,90.62,6.0]
[1643355643295,16.5544,90.73,90.62,19.5]
[1643355643498,41.54505989,90.729,90.63,6.0]
[1643355643895,44.50175131,90.729,90.63,6.0]
[1643355644899,41.54505989,90.729,90.631,6.0]
[1643355645196,41.54505989,90.729,90.64,13.25]
[1643355645596,41.54505989,90.729,90.641,108.9]
[1643355646000,12.80409475,90.735,90.651,6.0]
[1643355646197,16.5496,90.75,90.651,6.0]
[1643355646897,40.61945819,90.749,90.651,6.0]
[1643355647900,40.61945819,90.749,90.652,108.9]
[1643355650001,40.61945819,90.749,90.651,6.0]
[1643355650002,40.61945819,90.749,90.663,108.9]
[1643355650603,43.57614961,90.749,90.663,108.9]
[1643355652807,16.7931729,90.748,90.604,16.6311]
[1643355653008,13.25,90.74,90.622,108.9]
[1643355653205,2.99111799,90.739,90.632,6.0]
[1643355653408,142.6171323,90.739,90.632,6.0]
[1643355653606,2.97868866,90.733,90.632,6.0]
[1643355653811,13.25,90.73,90.621,6.0]
[1643355654209,2.99111799,90.729,90.621,6.0]
[1643355654407,78.87361768,90.732,90.621,6.0]
[1643355654408,57.91679003,90.732,90.621,6.0]
[1643355654707,20.95682765,90.728,90.63,6.0]
[1643355654908,2.99522888,90.727,90.63,6.0]
[1643355655110,36.67793461,90.727,90.63,6.0]
[1643355655306,39.65662327,90.726,90.621,6.0]
[1643355655508,108.9,90.724,90.621,6.0]
[1643355655711,2.99522888,90.723,90.621,6.0]
[1643355655909,20.99536511,90.723,90.621,6.0]